Cogmind - Beta 15 @@@ ROGUE MODE // 2025.07.29 @ 21:43:41 Player: shapeshifter Result: Destroyed by G-67 Veteran with Plasma Rifle Performance ------------- Evolutions (4) 2000 Regions Visited (7) 1400 Robots Destroyed (39) 195 Value Destroyed (1401) 1401 Prototype IDs (10) 200 Alien Tech Used (0) 0 Bonus (800) 800 TOTAL SCORE: 5996 Bonus ------- Registered with UFD 300 Met Optimus in HQ 500 Cogmind --------- Core Integrity 0/850 Matter 300/300 Energy 98/100 System Corruption 4% Temperature Cool (12) Movement Core (50) Location -6/Factory Parts ------- > --- POWER (2) -------- (None) > --- PROPULSION (3) --- (None) > --- UTILITY (8) ------ Makeshift Hacking Suite > --- WEAPON (2) ------- (None) > --- INVENTORY (5) ---- (None) Peak State ------------ > --- POWER ------------ Antimatter Reactor Antimatter Reactor > --- PROPULSION ------- Heavy Treads > --- UTILITY ---------- Experimental Terrain Scanner Transmission Jammer Damper Plating Makeshift Hacking Suite System Restoration Module > --- WEAPON ----------- Heavy Beamcaster Heavy Beamcaster > --- INVENTORY -------- Heavy Treads Heavy Treads Medium Armor Plating [Rating: 85] Favorites ----------- Power Light Ion Engine Engine Light Ion Engine Power Core Micro Nuclear Core Reactor Antimatter Reactor Propulsion Wheel Treads Light Treads Wheel Wheel Utility Seismic Detector Device Seismic Detector Storage High-capacity Storage Unit Hackware Makeshift Hacking Suite Protection Damper Plating Weapon Advanced Beam Cannon Energy Gun Heavy Beamcaster Energy Cannon Advanced Beam Cannon Ballistic Gun Assault Rifle Ballistic Cannon Flak Cannon Launcher Advanced Concussive RPG Build | -11 -10 -10 -8 -8 -6 -6 -6 ------- Run | Yrd Mat Sub Rec Scr Fac Was Fac Slots Evolved 8 | . . . . . 8 . . Power 1 | . . . . . 1 . . Propulsion 1 | . . . . . 1 . . Utility 6 | . . . . . 6 . . Weapon . | . . . . . . . . Parts Attached 50 | 6 3 6 . 2 18 11 4 Power 8 | 1 . 1 . 1 3 2 . Engine 4 | 1 . 1 . 1 1 . . Core 2 | . . . . . 2 . . Reactor 2 | . . . . . . 2 . Propulsion 8 | 2 . 2 . 1 . 1 2 Treads 6 | 2 . . . 1 . 1 2 Leg . | . . . . . . . . Wheel 2 | . . 2 . . . . . Hover . | . . . . . . . . Flight . | . . . . . . . . Utility 19 | 1 1 1 . . 10 4 2 Device 8 | . 1 . . . 4 2 1 Storage 2 | 1 . 1 . . . . . Processor . | . . . . . . . . Hackware 1 | . . . . . 1 . . Protection 8 | . . . . . 5 2 1 Artifact . | . . . . . . . . Weapon 15 | 2 2 2 . . 5 4 . Energy Gun 2 | . . . . . . 2 . Energy Cannon 4 | . 2 1 . . . 1 . Ballistic Gun 3 | 2 . . . . 1 . . Ballistic Cannon 2 | . . . . . 2 . . Launcher 4 | . . 1 . . 2 1 . Special Weapon . | . . . . . . . . Impact Weapon . | . . . . . . . . Slashing Weapon . | . . . . . . . . Piercing Weapon . | . . . . . . . . Special Melee Weapon . | . . . . . . . . Unidentified Prototypes 2 | . 1 . . . 1 . . Parts Lost 28 | . . . . . 17 . 11 Power 6 | . . . . . 4 . 2 Propulsion 5 | . . . . . 3 . 2 Utility 11 | . . . . . 6 . 5 Weapon 6 | . . . . . 4 . 2 Highest Loss Streak 8 | . . . . . 8 . 8 To Critical Strikes 1 | . . . . . . . 1 Average Backups 11 | 5 7 10 18 18 13 2 2 Power . | . 1 . 1 . 1 . . Propulsion 1 | 3 2 2 4 1 . 1 1 Utility 6 | . 2 3 9 11 8 1 . Weapon 2 | . 1 3 4 4 4 . . Tool/Special . | . . . . . . . . Unused Backups 40 | . 7 1 2 24 5 1 . Power 3 | . . . . 3 . . . Propulsion 7 | . 2 1 . 4 . . . Utility 23 | . 3 . 2 12 5 1 . Weapon 7 | . 2 . . 5 . . . Tool/Special . | . . . . . . . . Average Slot Usage (%) 87 | . 98 100 100 100 89 58 58 Engine 9 | . 14 14 14 14 5 . . Reactor 2 | . . . . . . 9 10 Treads 6 | . 28 17 . . 5 5 5 Wheel 13 | . . 10 28 28 8 . . Device 16 | . 12 14 14 14 23 19 17 Storage 9 | . 14 14 14 14 5 . . Hackware 2 | . . . . . 5 6 6 Protection 3 | . . . . . 11 5 5 Energy Gun 2 | . . . . . . 5 10 Energy Cannon 16 | . 10 26 28 28 5 2 . Ballistic Gun 1 | . 17 . . . 1 . . Peak Build Rating 85 | 7 12 14 14 22 51 82 85 Average Rating 32 | 5 9 12 14 17 45 69 71 On Entrance 20 | . 7 12 14 14 20 14 82 Naked Turns . | . . . . . . . . Heaviest Build 91 | 11 17 52 52 59 91 91 91 Greatest Support 70 | 40 40 40 20 20 20 70 70 Greatest Overweight (x) 23 | . . 5 2 2 23 1 1 Average Overweight (x) 1 | . . 1 2 2 4 . . Largest Inventory Capacity 20 | 8 8 20 20 20 20 5 5 Average Capacity 14 | 7 8 13 20 20 19 5 5 Most Carried 20 | 8 8 20 20 20 19 5 5 Average Carried 12 | 5 7 10 19 19 15 4 4 Final Capacity 20 | 8 8 20 20 20 5 5 5 Final Carried 20 | 8 8 20 20 20 3 5 . Class Distribution -------------------- 69% | Mutant 16% | Infiltrator-Mutant 8% | Derelict-Mutant 5% | Scavenger-Mutant Dominant Class ---------------- Mutant | -10/Materials Mutant | -10/Subcaves Mutant | -8/Recycling Mutant | -8/Scraptown Derelict-Mutant | -6/Factory Infiltrator-Mutant | -6/Waste Infiltrator-Mutant | -6/Factory Resources | -11 -10 -10 -8 -8 -6 -6 -6 ----------- Run | Yrd Mat Sub Rec Scr Fac Was Fac Matter Collected 1069 | 211 134 160 . 18 130 416 . Remotely . | . . . . . . . . Salvage Created 1173 | 24 221 78 175 . 593 . 82 Parts 77 | 6 12 3 8 . 43 . 5 Haulers Intercepted 1 | . 1 . . . . . . Recyclers Shooed 3 | . 1 . 1 . . . 1 Parts Field Recycled . | . . . . . . . . Retrieved Matter . | . . . . . . . . Parts Self-Destructed 9 | . . 9 . . . . . Prevented . | . . . . . . . . Kills | -11 -10 -10 -8 -8 -6 -6 -6 ------- Run | Yrd Mat Sub Rec Scr Fac Was Fac Combat Hostiles Destroyed 24 | . 3 2 2 . 16 . 1 Guns 2 | . . . . . 1 . 1 Cannons 8 | . 3 1 2 . 2 . . AOE 13 | . . . . . 13 . . Classes Destroyed 15 | 1 4 2 1 . 7 . . Worker 4 | . . . . . 3 . 1 Builder 4 | . 1 . . . 3 . . Tunneler 1 | 1 . . . . . . . Hauler 1 | . 1 . . . . . . Recycler 2 | . 1 . 1 . . . . Turret 2 | . . 2 . . . . . Watcher 1 | . . . . . 1 . . Swarmer 3 | . 3 . . . . . . Grunt 5 | . . . . . 4 . 1 Protector 3 | . . . . . 3 . . Sentry 3 | . . . 2 . 1 . . Specialist 1 | . . . . . 1 . . Hunter 5 | . . . . . 5 . . Programmer 2 | . . . . . 2 . . Subdweller 2 | . . 2 . . . . . Best Kill Streak 21 | 1 2 2 1 . 21 . 1 Combat Bots Only 14 | . 2 1 1 . 14 . 1 Max Kills in Single Turn 12 | 1 1 1 1 . 12 . 1 Gunslinging . | . . . . . . . . Exploded 8 | . . . . . 8 . . Melee . | . . . . . . . . Uniques/NPCs Destroyed . | . . . . . . . . Combat | -11 -10 -10 -8 -8 -6 -6 -6 -------- Run | Yrd Mat Sub Rec Scr Fac Was Fac Hostile Shots Fired 543 | . 26 26 2 . 276 . 213 Missed 198 | . 4 10 . . 106 . 78 Hits 345 | . 22 16 2 . 170 . 135 Melee 2 | . . . . . . . 2 Projectile 343 | . 22 16 2 . 170 . 133 AOE 2 | . . . . . 2 . . Critical Strikes 14 | . . . 1 . 4 . 9 Damage Taken 5670 | . 172 225 32 . 2656 . 2585 Core 926 | . 6 41 15 . 374 . 490 Absorbed by Shields . | . . . . . . . . Core Remaining (%) 87 | 100 . . . 75 . . . Volleys Fired 110 | 9 18 18 3 . 54 . 8 Largest 2 | 2 2 2 2 . 2 . 2 Hottest 162 | 40 136 136 136 . 136 . 162 Shots Fired 178 | 18 31 27 8 . 80 . 14 Gun 49 | 18 9 . . . 8 . 14 Cannon 107 | . 22 18 8 . 59 . . Launcher 22 | . . 9 . . 13 . . Special . | . . . . . . . . Kinetic 49 | 18 9 . . . 22 . . Thermal 107 | . 22 18 8 . 45 . 14 Explosive 15 | . . 9 . . 6 . . Electromagnetic 7 | . . . . . 7 . . Robot Hit Streak 15 | 6 6 4 6 . 15 . 5 Robot Miss Streak 6 | 2 6 5 2 . 4 . 1 Penetration Max . | . . . . . . . . Secondary Targets . | . . . . . . . . Shots Hit Robots 102 | 12 12 9 6 . 55 . 8 Core Hits 89 | 4 8 9 3 . 59 . 6 Critical Kills 1 | . . 1 . . . . . Critical Parts Destroyed . | . . . . . . . . Critical Strikes 2 | . . 1 . . . . 1 Burn 1 | . . . . . . . 1 Meltdown 1 | . . 1 . . . . . Melee Attacks . | . . . . . . . . Impact . | . . . . . . . . Slashing . | . . . . . . . . Piercing . | . . . . . . . . Sneak Attacks . | . . . . . . . . Combat Hostiles . | . . . . . . . . Follow-up Attacks . | . . . . . . . . Damage Inflicted 5146 | 116 245 369 105 . 4078 . 233 Guns 532 | 116 59 . . . 153 . 204 Cannons 1281 | . 186 163 104 . 828 . . Explosions 3303 | . . 206 . . 3097 . . Melee . | . . . . . . . . Ramming 30 | . . . 1 . . . 29 Kinetic 535 | 116 59 . . . 360 . . Thermal 3131 | . 186 163 104 . 2474 . 204 Explosive 999 | . . 206 . . 793 . . Electromagnetic 451 | . . . . . 451 . . Impact . | . . . . . . . . Slashing . | . . . . . . . . Piercing . | . . . . . . . . Highest Corruption 5 | . . . 2 . 5 5 5 Average Corruption 3 | . . . 1 . 2 5 4 Corruption Purged 5 | . . . . . . . 5 Corruption Blocked . | . . . . . . . . Effects 28 | . . . 5 . 1 15 7 Message Errors 8 | . . . 1 . . 6 1 Matter Fused 3 | . . . 1 . . 1 1 Heat Flow Errors 4 | . . . 1 . . 3 . Energy Discharges 4 | . . . . . . 3 1 Data Loss (minor) 5 | . . . . . 1 2 2 Misfires 4 | . . . 2 . . . 2 Overload Shots . | . . . . . . . . Overflow Damage 224 | . 1 . . . 223 . . Projectiles 1 | . 1 . . . . . . Explosions 223 | . . . . . 223 . . Melee . | . . . . . . . . Knockbacks 6 | . . . . . 5 . 1 Impact 1 | . . . . . . . 1 Kinetic 4 | . . . . . 4 . . Secondary 1 | . . . . . 1 . . Self-Inflicted Damage 45 | . . . . . 34 . 11 Shots 4 | . . . . . 4 . . Rammed 10 | . . . 1 . . . 9 Targets Rammed 10 | . . . 1 . . . 9 Kicked . | . . . . . . . . Crushed . | . . . . . . . . Highest Temperature 509 | . 320 90 196 . 396 246 509 Average Temperature 125 | . 173 41 58 . 110 88 164 Received Heat Transfer 1829 | . . 60 27 . 831 . 911 Effects 14 | . . . . . 5 . 9 Shutdowns 3 | . . . . . 1 . 2 Energy Bleed 4 | . . . . . 1 . 3 Interference 5 | . . . . . 3 . 2 Short Circuit 1 | . . . . . . . 1 Damage (minor) 1 | . . . . . . . 1 Siege Activations . | . . . . . . . . Martial Activations . | . . . . . . . . Shielding Activations . | . . . . . . . . Robots Disrupted . | . . . . . . . . Combat Hostiles . | . . . . . . . . Robots Corrupted . | . . . . . . . . Combat Hostiles . | . . . . . . . . Parts Fried 1 | . . . . . 1 . . Impact Corruptions . | . . . . . . . . Robots Melted 1 | . . 1 . . . . . Combat Hostiles 1 | . . 1 . . . . . Parts Melted 1 | . . 1 . . . . . Heat Transferred 3506 | . 333 296 185 . 2285 . 407 Parts Sabotaged . | . . . . . . . . Parts Stolen . | . . . . . . . . Parts Stripped . | . . . . . . . . Power Chain Reactions 2 | . . . . . 2 . . Alert | -11 -10 -10 -8 -8 -6 -6 -6 ------- Run | Yrd Mat Sub Rec Scr Fac Was Fac Maximum Alert Level 1 | . . . . . 1 . . Low Security (%) 98 | 100 100 . 100 . 92 100 100 Level 1 1 | . . . . . 7 . . Level 2 . | . . . . . . . . Level 3 . | . . . . . . . . Level 4 . | . . . . . . . . Level 5 . | . . . . . . . . High Security . | . . . . . . . . Max Security . | . . . . . . . . Peak Influence 396 | 5 67 . 57 . 396 108 75 Initial 108 | . . . 57 . . 108 . Average 16 | . 5 . 9 . 30 23 9 Influence Increases 1186 | 5 116 175 91 . 579 . 220 Destroy 0b10 Robot/C 420 | . 60 40 40 . 260 . 20 Destroy 0b10 Robot/NC 80 | 5 15 . 5 . 50 . 5 Destroy Leader 54 | . 12 . . . 42 . . Successful Hack 55 | . 14 . 31 . 10 . . Disable Machine 195 | . 15 . 15 . 165 . . Destroy Structure 52 | . . . . . 52 . . Lose Combat Pursuer 330 | . . 135 . . . . 195 Influence Decreases 1117 | 5 57 113 212 . 270 309 151 Entered New Map 294 | . . 29 64 . . 201 . Time Decay 635 | 5 57 84 148 . 142 108 91 Lost Part 188 | . . . . . 128 . 60 Squads Dispatched 7 | . . . . . 4 . 3 Investigation 1 | . . . . . . . 1 Extermination 2 | . . . . . 1 . 1 Reinforcement 4 | . . . . . 3 . 1 Assault . | . . . . . . . . Garrison . | . . . . . . . . Intercept . | . . . . . . . . Searches Triggered . | . . . . . . . . Construction Impeded 1 | . . . . . 1 . . Haulers Reinforced 2 | . . . . . 2 . . Active Scanning Responses . | . . . . . . . . Cargo Convoy Interrupts 2 | . . . . . 1 . 1 Stealth | -11 -10 -10 -8 -8 -6 -6 -6 --------- Run | Yrd Mat Sub Rec Scr Fac Was Fac Distress Signals 5 | . 1 . . . 3 . 1 Communications Jammed 1 | . . . . . . . 1 Distress Signals 1 | . . . . . . . 1 Times Spotted 88 | . 7 8 1 . 34 . 38 Peak Tracking Total 17 | . 3 2 . . 14 . 17 Tactical Retreats 8 | . . 2 . . 1 . 5 Traps | -11 -10 -10 -8 -8 -6 -6 -6 ------- Run | Yrd Mat Sub Rec Scr Fac Was Fac Traps Triggered 4 | . . . . . 4 . . Indirectly 3 | . . . . . 3 . . Trap Hack Attempts . | . . . . . . . . Triggered . | . . . . . . . . Disarmed . | . . . . . . . . Reprogrammed . | . . . . . . . . Reused . | . . . . . . . . Traps Extracted . | . . . . . . . . Installed . | . . . . . . . . Triggered . | . . . . . . . . Machines | -11 -10 -10 -8 -8 -6 -6 -6 ---------- Run | Yrd Mat Sub Rec Scr Fac Was Fac Machines Disabled 15 | . 1 2 1 . 11 . . Max in Single Turn 8 | . 1 2 1 . 8 . . Machines Repaired . | . . . . . . . . Machines Dismantled . | . . . . . . . . Machines Sabotaged . | . . . . . . . . Overloaded Fab Kills . | . . . . . . . . Hacking | -11 -10 -10 -8 -8 -6 -6 -6 --------- Run | Yrd Mat Sub Rec Scr Fac Was Fac Machines Accessed 19 | . 2 . 7 3 4 . 3 Terminals 10 | . 2 . 5 . 2 . 1 Fabricators . | . . . . . . . . Repair Stations . | . . . . . . . . Recycling Units 5 | . . . 2 . 1 . 2 Scanalyzers 1 | . . . . . 1 . . Garrison Access . | . . . . . . . . Total Hacks 51 | . 4 . 17 12 9 . 9 Successful 29 | . 1 . 11 12 4 . 1 Failed 22 | . 3 . 6 . 5 . 8 Catastrophic 2 | . . . 1 . 1 . . Database Lockouts . | . . . . . . . . Manual 17 | . 5 . 8 . 3 . 1 Terminals 25 | . 4 . 14 . 5 . 2 Fabricators . | . . . . . . . . Repair Stations . | . . . . . . . . Recycling Units 11 | . . . 3 . 1 . 7 Scanalyzers 3 | . . . . . 3 . . Garrison Access . | . . . . . . . . Terminal Hacks 20 | . . . 7 12 1 . . Record 12 | . . . . 12 . . . Part Schematic 2 | . . . 2 . . . . Prototype ID Bank 1 | . . . 1 . . . . Emergency Access Points 1 | . . . . . 1 . . Zone Layout 4 | . . . 4 . . . . Fabricator Hacks . | . . . . . . . . Repair Station Hacks . | . . . . . . . . Recycling Unit Hacks 5 | . . . 3 . 1 . 1 Report Inventory 5 | . . . 3 . 1 . 1 Scanalyzer 2 | . . . . . 2 . . Insert Component 1 | . . . . . 1 . . Analyze 1 | . . . . . 1 . . Garrison Access Hacks . | . . . . . . . . Unauthorized Hacks 2 | . 1 . 1 . . . . Terminals 2 | . 1 . 1 . . . . Botnet 2 | . 1 . 1 . . . . Fabricators . | . . . . . . . . Repair Stations . | . . . . . . . . Recycling Units . | . . . . . . . . Scanalyzers . | . . . . . . . . Garrison Access . | . . . . . . . . Data Cores Recovered . | . . . . . . . . Used . | . . . . . . . . Hacking Detections 12 | . 2 . 3 . 4 . 3 Full Trace Events 4 | . 1 . 2 . . . 1 Feedback Events 2 | . . . 2 . . . . Corruption 2 | . . . 2 . . . . Feedback Blocked . | . . . . . . . . Robot Schematics Acquired . | . . . . . . . . Robots Built . | . . . . . . . . Authchips . | . . . . . . . . Time . | . . . . . . . . Total Robot Build Rating . | . . . . . . . . Part Schematics Acquired 3 | . . . 2 . 1 . . Parts Built . | . . . . . . . . Authchips . | . . . . . . . . Time . | . . . . . . . . Total Part Build Rating . | . . . . . . . . Parts Repaired . | . . . . . . . . Time . | . . . . . . . . Parts Recycled . | . . . . . . . . Recycled Matter . | . . . . . . . . Retrieved Matter . | . . . . . . . . Retrieved Components . | . . . . . . . . Parts Scanalyzed 1 | . . . . . 1 . . Part Schematics Acquired 1 | . . . . . 1 . . Parts Damaged . | . . . . . . . . Bothacking | -11 -10 -10 -8 -8 -6 -6 -6 ------------ Run | Yrd Mat Sub Rec Scr Fac Was Fac Used RIF Installer . | . . . . . . . . Robots Hacked . | . . . . . . . . Non-combat . | . . . . . . . . Combat . | . . . . . . . . Robot Hacks Applied . | . . . . . . . . Relay Couplers Released . | . . . . . . . . Fabnet Peak Effective % . | . . . . . . . . Robots Rewired . | . . . . . . . . Allies Hacked . | . . . . . . . . Hacks Repelled . | . . . . . . . . Allies | -11 -10 -10 -8 -8 -6 -6 -6 -------- Run | Yrd Mat Sub Rec Scr Fac Was Fac Total Allies . | . . . . . . . . Largest Group . | . . . . . . . . Highest-Rated Group . | . . . . . . . . Highest-Rated Ally . | . . . . . . . . Total Orders . | . . . . . . . . Ally Attacks . | . . . . . . . . Total Damage . | . . . . . . . . Kills . | . . . . . . . . Allies Corrupted . | . . . . . . . . Allies Melted . | . . . . . . . . Intel | -11 -10 -10 -8 -8 -6 -6 -6 ------- Run | Yrd Mat Sub Rec Scr Fac Was Fac Active Infowar (turns) 5433 | . 402 558 661 1617 882 534 779 Terrain 1867 | . . . . . 803 534 530 Seismic 4097 | . 402 558 661 1617 859 . . Jamming 1265 | . . . . . . 486 779 ECM 1655 | . . . . . 785 484 386 Robot Analysis Total . | . . . . . . . . Derelict Logs Recovered 5 | . . 1 . 4 . . . Drone Launches . | . . . . . . . . Drone Recoveries . | . . . . . . . . Exploration | -11 -10 -10 -8 -8 -6 -6 -6 ------------- Run | Yrd Mat Sub Rec Scr Fac Was Fac Turns Passed 5744 | 205 455 558 661 1617 882 534 832 Spaces Moved 3643 | 115 212 351 552 1422 369 285 337 Core 181 | 22 . . . . 27 80 52 Treads 987 | 93 212 184 . . 8 205 285 Legs . | . . . . . . . . Wheels 2475 | . . 167 552 1422 334 . . Hover . | . . . . . . . . Flight . | . . . . . . . . Fastest Speed 50 | 50 160 110 110 110 50 50 50 Average Speed 132 | 138 160 138 110 110 153 179 179 Slowest Speed 1200 | 160 160 240 110 110 1200 240 240 Overloaded Moves . | . . . . . . . . Propulsion Burnouts . | . . . . . . . . Robots Hopped . | . . . . . . . . Potential Cave-ins . | . . . . . . . . Cave-ins Triggered . | . . . . . . . . Exploration Rate (%) 45 | 5 36 21 92 91 9 96 16 Regions Visited 7 Branch Regions 3 Pre-discovered Areas 2 | . . . . 2 . . . Known Exits Taken . | . . . . . . . . Unknown Exits Taken 5 | 1 1 1 1 1 . . . Scrap Searched 6 | . . . . 6 . . . Spaces Dug 40 | . . 15 . . 25 . . Terrain Destroyed 80 | . . 24 . . 56 . . Melee . | . . . . . . . . Projectile 2 | . . . . . 2 . . AOE 78 | . . 24 . . 54 . . Terrain Rammed . | . . . . . . . . Walls Destroyed . | . . . . . . . . Machines Disabled . | . . . . . . . . Actions | -11 -10 -10 -8 -8 -6 -6 -6 --------- Run | Yrd Mat Sub Rec Scr Fac Was Fac Total 4383 | 144 301 395 601 1488 600 307 547 Wait 415 | 2 52 . 40 5 136 . 180 Move 3637 | 114 211 350 551 1421 369 284 337 Hop . | . . . . . . . . Pick Up 85 | 13 8 15 3 29 10 6 1 Fast Attach 11 | 1 2 . . . . 6 2 Attach 33 | 5 1 1 . . 16 5 5 Detach 4 | . . 1 . . . 1 2 Swap 19 | . . 6 . 3 10 . . Drop 59 | . 9 4 3 30 5 5 3 Fire 110 | 9 18 18 3 . 54 . 8 Melee . | . . . . . . . . Ram 3 | . . . 1 . . . 2 Kick . | . . . . . . . . Crush 7 | . . . . . . . 7 Escape Stasis . | . . . . . . . . Rewire . | . . . . . . . . Trap . | . . . . . . . . Miscellaneous . | . . . . . . . . Route ------- -11/Scrapyard -10/Materials (discovered 2 exits: [*Mat] / [*Sub]) -10/Subcaves -8/Recycling (discovered 2 exits: *Fac / *Scr) -8/Scraptown (discovered 2 exits: *Fac x2) -6/Factory -6/Waste -6/Factory History --------- Turn | Location | Event 6 | -11/Scrapyard | Discovered new exit (range 16) 206 | -11/Scrapyard | Entered Materials 318 | -10/Materials | Build established: Mutant 342 | -10/Materials | Discovered new exit (range 3) 576 | -10/Materials | Discovered new exit (range 6) 661 | -10/Materials | Entered Subcaves 841 | -10/Subcaves | Shifting Twisted Machinery released Mak. Hacking Suite 1147 | -10/Subcaves | Discovered new exit (range 7) 1219 | -10/Subcaves | Entered Recycling 1615 | -8/Recycling | Scanned before Scraplab entrance 1690 | -8/Recycling | Discovered new exit (range 15) 1869 | -8/Recycling | Entered Scraplab 1878 | -8/Recycling | Discovered new exit (range 3) 1880 | -8/Recycling | Entered Scraptown 1880 | -8/Scraptown | System corruption cleaned by C-Scrubber 2044 | -8/Scraptown | Scanned Subdweller tech in exchange for log data 2047 | -8/Scraptown | Learned Research terminal intel 2049 | -8/Scraptown | Learned location of Zion (-7) 2050 | -8/Scraptown | Learned location of Extension (-4) 2067 | -8/Scraptown | Discovered new exit (range 11) 2459 | -8/Scraptown | Visited Comm Corps 2506 | -8/Scraptown | Visited Cyclists 2526 | -8/Scraptown | Visited TADAMA 2549 | -8/Scraptown | Visited Cave Peace 2617 | -8/Scraptown | Visited Fellowship of the Rings 2629 | -8/Scraptown | Visited SPCMW 2662 | -8/Scraptown | Visited Red Mages 2694 | -8/Scraptown | Visited UFD Registry 2694 | -8/Scraptown | Registered with UFD as "Flashpod" 2734 | -8/Scraptown | Entered Cyclist Reading Room 2799 | -8/Scraptown | Visited Curators Association 2814 | -8/Scraptown | Visited Scrapoid Research Area 2836 | -8/Scraptown | Visited DA-N13 Charitable Foundation 2841 | -8/Scraptown | Found DCF Scrap (28 items) 2991 | -8/Scraptown | Visited Chapter 10 3026 | -8/Scraptown | Visited Infowarlord's Domain 3031 | -8/Scraptown | Found Exp. Terrain Scanner 3049 | -8/Scraptown | Visited Observation Area 3114 | -8/Scraptown | Visited Supply Room 3166 | -8/Scraptown | Visited Junk Repository 3199 | -8/Scraptown | Visited Derelict Rescue Squad 3206 | -8/Scraptown | Found DRS Beacon 3316 | -8/Scraptown | Discovered new exit (range 4) 3339 | -8/Scraptown | Found Scrap Suit 3428 | -8/Scraptown | Met Optimus 3428 | -8/Scraptown | Accepted into 0bPrime 3497 | -8/Scraptown | Entered Factory 3497 | -6/Factory | Evolved 8 slots: Power x1, Propulsion x1, Utility x6 3788 | -6/Factory | Lost 3 parts (1p1u1w) 4311 | -6/Factory | Cargo convoy interrupted 4321 | -6/Factory | Lost 5 parts (2p2n1u) 4345 | -6/Factory | Destroyed 14 combat bots 4379 | -6/Factory | Manually triggered Chute Trap 4379 | -6/Factory | Sucked down chute 4379 | -6/Factory | Entered Waste 4379 | -6/Waste | The area was eerily silent 4391 | -6/Waste | Lost 8 parts (1p4u3w) 4450 | -6/Waste | Discovered new exit (range 16) 4468 | -6/Waste | Found Damper Plating 4712 | -6/Waste | Build established: Infiltrator-Mutant 4913 | -6/Waste | Entered Factory 5545 | -6/Factory | Core integrity fell below 50% 5719 | -6/Factory | Cargo convoy interrupted 5731 | -6/Factory | Core integrity fell below 20% 5745 | -6/Factory | Destroyed by G-67 Veteran with Plasma Rifle Last Messages --------------- 05728_ Slammed into H-66 Slayer. 05728_ K-01 Serf collects debris. 05729_ Slammed into X-67 Chaingunner. 05730_ Hvy. Treads destroyed. 05730_ Penetrated by Slug. 05730_ Exp. Terrain Scanner destroyed. 05731_ Slammed into P-60 Hacker. 05732_ Slammed into R-10 Processor. 05732_ R-10 Processor knocked back. 05735_ Slug penetrates Wall. 05736_ Matter Pump disabled. 05736_ Chain reaction triggered in Lgt. Ion Engine. 05736_ K-01 Serf destroyed. 05736_ K-01 Serf collects debris. 05740_ U-05 Engineer lays Concrete. 05745_ C-30 ARC bursts open, deploying its payload. 05745_ G-67 Veteran unfolds itself. 05745_ G-50 Soldier unfolds itself. Map ----- +----------------------------------------------------+ | ????????# """""" #???# #########?????????? | | ????????# """"" ##### #?????????????????? | | ????????# + #?????????????????? | | ????????# """" #######/###?????????????????? | | ????????#* """ #????? ??????????????????? | | ????????# =%="""""" #?????" """?????????????????? | | ?????#??#! ! """""" #????"" """ ????????????????? | | ?????# ?# %% #????"" """ #??????????????? | | ?????# ########"#######?? #??????????????? | | ?????# !! % +??""" """? #??????????????? | | ?????# !!% #####????" "???????????????????? | | ?????+ ! ! = #????????" "???????????????????? | | ?????# #???????? ???????????????????? | | ?????# #????##??###???????????????????? | | ?????# ^ #???? ????????????????????????? | | ?????# """ %"" # """ ""???????????????????????? | | ?????# """ """ #?""" """ #????????????????????? | | ?????# """ """ #?""" """ ?????????????????????? | | ?????# ^ #? ??????????????????????? | | ?????# """ """ #? ???????????????????????? | | ?????# """ """ #? ????????????????????????? | | ?????# """ """ #? ?????????????????????????? | | ?????# p###+##################?????????? | | """ """ k A ????????? | | """ """ ????????? | | """ """ @ k ????????? | | [ ^ ????????? | | k ????????? | | ?##?##########+############ ###+####?????????? | | ??????????????????????????? #????????????????? | | ????????????????????????????g%g #????????????????? | | ???????????????????????????? g #????????????????? | | ????????????????????????????? #????????????????? | | ????????????????????????????? #????????????????? | | ?????????????????????????????? #????????????????? | | ?????????????????????????????? #????????????????? | | ??????????????????????????????? #????????????????? | | ??????????????????????????????? #????????????????? | | ????????????????????????????????#????????????????? | | ?????????????????????????????????????????????????? | | ?????????????????????????????????????????????????? | | ?????????????????????????????????????????????????? | | ?????????????????????????????????????????????????? | | ?????????????????????????????????????????????????? | | ?????????????????????????????????????????????????? | | ?????????????????????????????????????????????????? | | ?????????????????????????????????????????????????? | | ?????????????????????????????????????????????????? | | ?????????????????????????????????????????????????? | | ?????????????????????????????????????????????????? | +----------------------------------------------------+ Best States ------------- Heat Dissipation 47 Energy Generation 37 Energy Capacity 550 Matter Stores 300 Matter Capacity 300 Sight Range 16 Terrain Scan Range 30 Terrain Scan Density 10 ECM Strength 1 Jamming Range 12 Armor Coverage 1600 Resistance: EM 90 Evasion (%) 50 Recoil Reduction 2 Offensive Hacking 11 Item Schematics ----------------- Insulated Plating | -8/Recycling | Hacked Plasma Cannon | -8/Recycling | Hacked Imp. Medium Armor Plating | -6/Factory | Scanalyzed Robot Schematics ------------------ None Fabricated ------------ Nothing Repaired ---------- Nothing Alien Tech Used ----------------- None Achievements -------------- None Challenges ------------ None Game ------ Seed GunSpreadBeamcaster Manual? 0 Play Time 00:54:22 Cumulative 74.2 hours Start 2025.07.29 @ 20:51:17 End 2025.07.29 @ 21:43:41 Sessions 1 Manual Loads 0 Difficulty Rogue Special Mode None Game No. 154 Rogue 154 Adventurer 0 Explorer 0 Win Type - Total 1 Types 1/0/0/0/0/0/0/0/0/0 Lore% 55 Gallery% 52 Achievement% 39 Wizard Run 0 Options --------- Layout 1 ASCII 0 Keyboard 0 Movement Mouse Keybinds 0 Fullscreen 1 Font 24/Smallcaps Map View 50x40 Zoom Use 0% Tactical HUD 1 Map Filters NONE Filters NONE Steam 1 RUN: 2e959fe7-21b8-40f5-9858-b78acca0e062